bitfinex-derivatives/quotes_SOLF0:USTF0_20250424
["timestamp","ask_amount","ask_price","bid_price","bid_amount"]
[1745457645350,26.5,149.29,149.23,3.8627]
[1745457645551,33.1964,149.29,149.25,6.6976]
[1745457646556,26.5,149.29,149.26,6.6974]
[1745457646760,26.5,149.29,149.23,3.8627]
[1745457647356,26.5,149.33,149.25,16.30523514]
[1745457647756,33.1944,149.33,149.25,16.30523514]
[1745457648060,26.5,149.33,149.25,16.30523514]
[1745457648260,6.6955,149.31,149.28,6.6966]
[1745457648457,26.5,149.33,149.24,26.5]
[1745457648856,6.6954,149.31,149.24,26.5]
[1745457649368,6.695,149.32,149.25,16.30523514]
[1745457649557,26.5,149.33,149.25,16.30523514]
[1745457649862,6.6956,149.31,149.28,6.6966]
[1745457650055,6.6956,149.31,149.25,16.30523514]
[1745457650355,26.5,149.33,149.26,6.6974]
[1745457650561,26.5,149.33,149.25,16.30523514]
[1745457650861,26.5,149.33,149.24,26.5]
[1745457651059,26.5,149.33,149.25,6.6978]
[1745457651361,26.5,149.33,149.23,3.8627]
[1745457652063,30.4937,149.33,149.23,3.8627]
[1745457652257,6.697,149.28,149.25,6.6979]
[1745457652763,26.5,149.29,149.24,6.6982]
[1745457653263,6.6974,149.27,149.23,8.6541]
[1745457653563,6.6974,149.27,149.23,1.9554]
[1745457653763,26.5,149.29,149.23,1.9554]
[1745457655061,6.6969,149.28,149.25,6.6979]
[1745457655256,26.5,149.29,149.23,1.9554]
[1745457655764,26.5,149.29,149.23,18.26063514]
[1745457656262,26.5,149.29,149.26,6.6971]
[1745457656759,26.5,149.29,149.27,6.6971]
[1745457657062,3.9937,149.33,149.23,18.26063514]
[1745457657360,26.5,149.32,149.23,18.26063514]
[1745457657961,6.6956,149.31,149.23,18.26063514]
[1745457658357,6.6956,149.31,149.28,6.6964]
[1745457658657,33.195,149.32,149.23,18.26063514]
[1745457658861,33.195,149.32,149.28,6.6964]
[1745457659163,26.5,149.32,149.28,6.6964]
[1745457659861,26.5,149.32,149.27,6.6969]
[1745457660465,26.5,149.32,149.25,6.6977]
[1745457660665,26.5,149.32,149.23,12.15921768]
[1745457661064,26.5,149.32,149.25,10.20381768]
[1745457661566,33.1952,149.32,149.29,6.6961]
[1745457662061,1.9985,149.36,149.27,10.20381768]
[1745457662263,28.6385,149.36,149.29,10.20381768]
[1745457662469,26.64,149.36,149.31,10.20381768]
[1745457662662,26.64,149.39,149.3,1.9899]
[1745457662859,36.84381768,149.39,149.3,1.9899]
[1745457663062,2.077,149.38,149.3,1.9899]
[1745457663261,6.6936,149.35,149.32,6.6947]
[1745457663471,2.077,149.38,149.3,1.9899]
[1745457663668,6.6927,149.37,149.34,6.6937]
[1745457663866,2.077,149.38,149.34,6.6937]
[1745457664168,2.077,149.38,149.3,1.9899]
[1745457664373,6.6942,149.34,149.31,6.6952]
[1745457664571,10.20381768,149.35,149.29,26.64]
[1745457664872,6.6947,149.33,149.3,6.6957]
[1745457665767,26.64,149.35,149.27,10.20381768]
[1745457666871,6.6944,149.33,149.29,6.696]
[1745457667166,26.64,149.35,149.29,6.696]
[1745457667373,36.84381768,149.35,149.26,26.64]
[1745457667570,10.20381768,149.33,149.26,26.64]
[1745457667769,2.0514,149.32,149.25,12.19371768]
[1745457668873,8.7465,149.32,149.25,12.19371768]
[1745457669768,2.0514,149.32,149.25,12.19371768]
[1745457670070,26.64,149.31,149.25,1.9899]
[1745457670272,6.6963,149.29,149.26,6.6974]
[1745457670468,26.64,149.31,149.25,1.9899]
[1745457670672,26.64,149.31,149.25,12.19371768]
[1745457670873,6.6958,149.3,149.27,6.6968]
[1745457671065,26.64,149.31,149.25,12.19371768]
[1745457671269,26.64,149.31,149.23,36.84381768]
[1745457671672,36.84381768,149.31,149.23,26.64]
[1745457671972,36.84381768,149.31,149.21,12.23281768]
[1745457672172,6.6966,149.28,149.24,6.6982]
[1745457672375,36.84381768,149.31,149.24,6.6982]
[1745457673579,6.6976,149.26,149.24,6.6982]
[1745457674075,6.6972,149.27,149.24,6.6982]
[1745457675877,6.6972,149.27,149.25,6.698]
[1745457676078,6.6972,149.27,149.21,12.23281768]
[1745457676468,6.6972,149.27,149.23,6.6985]
[1745457676770,36.84381768,149.31,149.21,12.23281768]
[1745457676975,6.6985,149.24,149.2,28.7088]
[1745457677371,6.6985,149.24,149.21,6.6995]
[1745457677572,6.6989,149.23,149.17,518.98381768]
[1745457677777,1.8854,149.26,149.2,6.6998]
[1745457678079,6.6987,149.24,149.2,6.6998]
[1745457678282,1.8854,149.26,149.2,6.6998]
[1745457678781,1.8854,149.26,149.21,6.6998]
[1745457678782,6.6987,149.24,149.21,6.6998]
[1745457679380,1.8854,149.26,149.22,6.6992]
[1745457679981,1.8854,149.26,149.23,6.6989]
[1745457680783,8.5832,149.26,149.23,6.6989]
[1745457681079,1.8854,149.26,149.19,10.20381768]
[1745457681283,6.6983,149.25,149.19,10.20381768]
[1745457681480,10.20381768,149.24,149.16,1.9872]
[1745457681688,26.64,149.23,149.18,6.7009]
[1745457681879,6.6996,149.22,149.16,1.9872]
[1745457682286,6.7005,149.2,149.16,1.9872]
[1745457682676,10.20381768,149.17,149.08,7.88113123]
[1745457682881,1.8888,149.16,149.08,7.88113123]
[1745457683081,1.8888,149.16,149.09,10.20381768]
[1745457683082,26.64,149.15,149.09,10.20381768]
[1745457683277,482.3,149.2,149.08,7.88113123]
[1745457683278,26.64,149.17,149.11,10.20381768]
[1745457683486,6.7011,149.18,149.11,10.20381768]
[1745457683689,6.7011,149.18,149.13,6.7033]
[1745457684183,6.7016,149.17,149.11,3.8663]
[1745457684482,26.64,149.2,149.14,10.20381768]
[1745457685082,28.5882,149.23,149.16,10.20381768]
[1745457685582,28.5882,149.23,149.14,36.86381768]
[1745457686079,28.5882,149.23,149.17,6.7013]
[1745457686285,28.5882,149.23,149.16,10.20381768]
[1745457686582,1.9282,149.23,149.16,10.20381768]
[1745457686781,1.9282,149.23,149.18,10.20381768]
[1745457686981,1.9282,149.23,149.17,10.20381768]
[1745457687487,1.9282,149.23,149.15,10.20381768]
[1745457688588,1.9282,149.23,149.14,26.66]
[1745457688988,6.6999,149.21,149.17,6.7013]
[1745457689890,6.7002,149.2,149.16,6.7019]
[1745457690486,1.9381,149.26,149.19,10.20381768]
[1745457690693,26.66,149.26,149.19,10.20381768]
[1745457691190,1.9534,149.29,149.21,10.20381768]
[1745457691392,6.6983,149.25,149.21,6.6996]
[1745457691596,10.20381768,149.28,149.19,3.8022]
[1745457691798,12.13831768,149.28,149.19,3.8022]
[1745457692099,12.13831768,149.28,149.21,6.6995]
[1745457692392,28.6934,149.29,149.2,10.20381768]
[1745457692588,35.3899,149.29,149.22,10.20381768]
[1745457692785,28.6934,149.29,149.22,10.20381768]
[1745457693497,6.6968,149.28,149.24,6.6981]
[1745457693692,6.6968,149.28,149.22,10.20381768]
[1745457693892,28.6934,149.29,149.22,10.20381768]
[1745457694294,35.3897,149.29,149.22,10.20381768]
[1745457694897,35.3897,149.29,149.24,6.6984]
[1745457695495,35.3897,149.29,149.25,6.6979]
[1745457695897,28.6934,149.29,149.22,26.74]
[1745457696097,28.6934,149.29,149.27,6.6966]
[1745457696298,2.0144,149.37,149.26,10.20381768]
[1745457696299,509.12,149.34,149.26,10.20381768]
[1745457696494,6.6945,149.33,149.26,10.20381768]
[1745457696696,6.6945,149.33,149.26,36.94381768]
[1745457696999,6.6945,149.33,149.3,6.6957]
[1745457697392,6.6945,149.33,149.26,36.94381768]
[1745457697592,6.6948,149.32,149.26,36.94381768]
[1745457697798,509.12,149.34,149.26,36.94381768]
[1745457698096,6.6947,149.33,149.29,6.6961]
[1745457698297,28.7492,149.36,149.28,10.20381768]
[1745457698498,28.7492,149.36,149.26,36.94381768]
[1745457699102,6.6943,149.34,149.31,6.6953]
[1745457699296,28.7492,149.36,149.28,10.20381768]
[1745457699800,6.6936,149.35,149.3,6.6956]
[1745457700100,10.20381768,149.35,149.26,36.94381768]
[1745457700803,10.20381768,149.35,149.26,26.74]
[1745457701103,10.20381768,149.33,149.26,26.74]
[1745457701599,10.20381768,149.31,149.23,26.72]
[1745457701799,1.8891,149.3,149.23,26.72]
[1745457702402,6.6967,149.28,149.23,26.72]
[1745457703002,6.6963,149.29,149.23,26.72]
[1745457703203,1.8891,149.3,149.25,10.20381768]
[1745457703412,26.72,149.32,149.25,10.20381768]
[1745457703602,6.696,149.3,149.26,6.6972]
[1745457704000,6.696,149.3,149.27,6.697]
[1745457704203,6.6953,149.31,149.23,36.92381768]
[1745457705107,6.6953,149.31,149.27,6.6968]
[1745457705406,6.6953,149.31,149.23,36.92381768]
[1745457705606,6.6953,149.31,149.27,6.6968]
[1745457706403,6.6953,149.31,149.28,6.6965]
[1745457707506,33.415,149.32,149.28,6.6965]
[1745457707805,26.72,149.32,149.28,6.6965]
[1745457708306,6.6954,149.31,149.28,6.6965]
[1745457711508,6.6957,149.3,149.27,6.6969]
[1745457711708,26.72,149.32,149.27,6.6969]
[1745457711909,6.6955,149.31,149.28,6.6965]
[1745457712708,6.695,149.32,149.28,6.6965]
[1745457713305,26.72,149.34,149.27,36.92381768]
[1745457713503,28.6459,149.37,149.29,10.20381768]
[1745457713904,6.6942,149.34,149.3,6.6957]
[1745457714105,28.6459,149.37,149.29,10.20381768]
[1745457714303,28.6459,149.37,149.3,6.6955]
[1745457714507,6.6949,149.32,149.27,36.92381768]
[1745457714711,6.6949,149.32,149.27,26.72]
[1745457715013,26.72,149.33,149.27,6.6969]
[1745457715407,26.72,149.33,149.26,3.9131]
[1745457715607,6.6949,149.32,149.26,14.11691768]
[1745457715909,26.72,149.33,149.28,6.6963]
[1745457716212,26.72,149.33,149.26,3.9131]
[1745457716712,26.72,149.33,149.26,14.11691768]
[1745457717012,26.72,149.33,149.28,6.6963]
[1745457717215,26.72,149.33,149.26,14.11691768]
[1745457717510,26.72,149.36,149.28,10.20381768]
[1745457717714,33.4132,149.36,149.3,10.20381768]
[1745457717912,26.72,149.36,149.3,10.20381768]
[1745457718111,26.72,149.36,149.28,26.72]
[1745457718112,26.72,149.36,149.28,36.92381768]
[1745457719009,1.9259,149.37,149.3,10.20381768]
[1745457720114,8.6187,149.37,149.3,10.20381768]
[1745457720417,1.9259,149.37,149.3,10.20381768]
[1745457720620,1.9259,149.37,149.33,6.6941]
[1745457720806,1.9259,149.37,149.3,10.20381768]
[1745457721313,8.6187,149.37,149.34,6.6939]
[1745457722118,6.6931,149.36,149.3,10.20381768]
[1745457722820,6.6931,149.36,149.33,6.6941]
[1745457723021,8.6187,149.37,149.33,6.6941]
[1745457723317,8.6187,149.37,149.3,10.20381768]
[1745457723518,1.9259,149.37,149.3,10.20381768]
[1745457724218,8.6186,149.37,149.3,10.20381768]
[1745457724416,26.72,149.39,149.32,10.20381768]
[1745457724617,6.6905,149.42,149.36,10.20381768]
[1745457725116,26.36,149.43,149.38,10.20381768]
[1745457725923,1.9394,149.44,149.38,10.20381768]
[1745457726217,6.69,149.43,149.4,6.6912]
[1745457727318,6.6905,149.42,149.36,26.36]
[1745457727620,36.56381768,149.46,149.37,10.20381768]
[1745457727820,6.69,149.43,149.37,10.20381768]
[1745457728023,26.36,149.46,149.37,10.20381768]
[1745457728220,33.0487,149.46,149.42,6.6901]
[1745457728424,26.36,149.46,149.39,10.20381768]
[1745457728724,2.0115,149.48,149.41,10.20381768]
[1745457728917,6.6881,149.47,149.43,6.6899]
[1745457729118,2.0115,149.48,149.41,10.20381768]
[1745457729318,26.34,149.49,149.41,14.24601768]
[1745457729719,6.688,149.48,149.44,6.6894]
[1745457731128,6.6882,149.47,149.43,6.6898]
[1745457731329,26.34,149.49,149.41,14.24601768]
[1745457731528,482.08,149.5,149.43,10.20381768]
[1745457731828,26.34,149.51,149.43,10.20381768]
[1745457732033,6.6868,149.5,149.43,10.20381768]
[1745457732221,26.34,149.55,149.48,10.20381768]
[1745457732426,481.9,149.57,149.48,36.54381768]
[1745457732729,492.10381768,149.57,149.48,26.34]
[1745457732927,492.10381768,149.57,149.48,36.54381768]
[1745457733229,481.9,149.57,149.48,36.54381768]
[1745457733529,481.9,149.57,149.5,10.20381768]
[1745457733733,481.9,149.57,149.51,6.6862]
[1745457733927,28.2483,149.58,149.49,2.0366]
[1745457734422,6.6846,149.55,149.5,6.6865]
[1745457734626,10.20381768,149.57,149.49,2.0366]
[1745457734826,10.20381768,149.57,149.48,33.0275]
[1745457735023,10.20381768,149.53,149.45,26.34]
[1745457735228,36.54381768,149.53,149.45,26.34]
[1745457735532,6.6868,149.5,149.46,6.6885]
[1745457736836,6.6865,149.51,149.46,6.6885]
[1745457737033,6.6865,149.51,149.47,6.6881]
[1745457737431,2.0689,149.52,149.46,10.20381768]
[1745457737632,26.34,149.53,149.46,10.20381768]
[1745457738633,26.34,149.53,149.48,10.20381768]
[1745457738932,26.34,149.56,149.5,10.20381768]
[1745457739433,26.34,149.56,149.49,26.34]
[1745457739636,6.6862,149.52,149.49,26.34]
[1745457739836,6.6862,149.52,149.46,36.52381768]
[1745457740534,6.6862,149.52,149.48,6.6873]
[1745457741028,6.6862,149.52,149.46,36.52381768]
[1745457741233,6.6862,149.52,149.48,6.6875]
[1745457742638,6.6868,149.5,149.46,36.52381768]
[1745457742832,10.20381768,149.54,149.46,26.32]
[1745457744142,10.20381768,149.54,149.47,6.6878]
[1745457744740,6.6868,149.5,149.47,6.6878]
[1745457745435,6.6872,149.49,149.46,33.0085]
[1745457745630,10.20381768,149.54,149.46,26.32]
[1745457745833,10.20381768,149.5,149.43,26.32]
[1745457746031,10.20381768,149.48,149.41,2.0323]
[1745457746231,10.20381768,149.46,149.39,26.32]
[1745457746533,36.52381768,149.46,149.39,26.32]
[1745457746939,36.52381768,149.46,149.4,6.691]
[1745457747438,6.6897,149.44,149.4,6.691]
[1745457748231,6.69,149.43,149.39,33.0115]
[1745457748436,36.52381768,149.46,149.39,26.32]
[1745457748638,36.52381768,149.46,149.36,26.32]
[1745457748941,6.6907,149.42,149.39,6.6915]
[1745457749141,36.52381768,149.46,149.39,6.6915]
[1745457749336,6.6903,149.43,149.39,6.6915]
[1745457750737,6.6903,149.43,149.4,6.6912]
[1745457751944,6.6903,149.43,149.39,6.6915]
[1745457752141,6.6904,149.42,149.39,6.6915]
[1745457753035,6.6901,149.43,149.39,6.6915]
[1745457753540,6.6901,149.43,149.4,6.6912]
[1745457753842,6.6901,149.43,149.36,26.32]
[1745457754042,6.6901,149.43,149.39,6.6914]
[1745457754536,26.32,149.46,149.42,6.6903]
[1745457755141,33.0088,149.46,149.42,6.6903]
[1745457755342,33.0088,149.46,149.43,6.6898]
[1745457755540,26.32,149.46,149.39,10.20381768]
[1745457755741,26.32,149.46,149.37,10.20381768]
[1745457755939,36.52381768,149.46,149.39,6.6915]
[1745457756242,6.6907,149.42,149.36,26.32]
[1745457756445,10.20381768,149.44,149.35,4.0574]
[1745457756737,10.20381768,149.42,149.35,4.0574]
[1745457756942,37.08381768,149.42,149.36,6.6927]
[1745457757343,26.88,149.42,149.36,10.20381768]
[1745457757546,1.989,149.43,149.38,6.6921]
[1745457758039,6.6907,149.42,149.38,6.6921]
[1745457758243,6.6907,149.42,149.39,6.6916]
[1745457758444,6.6907,149.42,149.36,10.20381768]
[1745457758738,6.6907,149.42,149.38,6.6918]
[1745457759137,6.6907,149.42,149.36,10.20381768]
[1745457759343,26.82,149.45,149.38,10.20381768]
[1745457759645,14.01601768,149.48,149.4,10.20381768]
[1745457759646,30.6322,149.48,149.4,10.20381768]
[1745457759844,6.6889,149.46,149.4,10.20381768]
[1745457760244,6.6891,149.45,149.42,6.6901]
[1745457760447,30.6322,149.48,149.42,6.6901]
[1745457761042,30.6322,149.48,149.43,6.6899]
[1745457761544,6.6888,149.46,149.43,6.6899]
[1745457763344,6.6891,149.45,149.42,6.6902]
[1745457764944,6.6895,149.44,149.41,6.6907]
[1745457765143,10.20381768,149.46,149.37,26.82]
[1745457765344,2.0696,149.45,149.37,26.82]
[1745457765743,2.0696,149.45,149.38,10.20381768]
[1745457765938,2.0696,149.45,149.42,6.69]
[1745457766148,10.20381768,149.51,149.42,10.20381768]
[1745457766347,28.8492,149.51,149.42,10.20381768]
[1745457766548,6.6875,149.49,149.45,6.6887]
[1745457766849,6.6875,149.49,149.42,10.20381768]
[1745457767149,6.6875,149.49,149.45,6.6887]
[1745457767548,6.6875,149.49,149.42,10.20381768]
[1745457768451,6.6875,149.49,149.46,6.6884]
[1745457769846,6.6875,149.49,149.47,6.6881]
[1745457770546,28.8492,149.51,149.48,6.6876]
[1745457770949,28.8492,149.51,149.44,10.20381768]
[1745457771247,6.6872,149.49,149.46,6.6883]
[1745457771448,28.8492,149.51,149.44,10.20381768]
[1745457771650,6.6873,149.49,149.46,6.6882]
[1745457772552,6.6869,149.5,149.47,6.6881]
[1745457772749,28.8492,149.51,149.44,10.20381768]
[1745457773750,28.8492,149.51,149.42,14.27511768]
[1745457774351,6.688,149.48,149.42,14.27511768]
[1745457774557,28.8492,149.51,149.42,14.27511768]
[1745457774753,10.20381768,149.5,149.42,4.0713]
[1745457775153,6.6886,149.46,149.43,6.6897]
[1745457776154,6.6883,149.47,149.44,6.6894]
[1745457776357,10.20381768,149.5,149.44,6.6894]
[1745457776954,6.6881,149.47,149.44,6.6894]
[1745457777354,6.688,149.48,149.41,26.82]
[1745457777561,10.20381768,149.5,149.41,26.82]
[1745457778960,6.6884,149.47,149.44,6.6892]
[1745457779459,6.6884,149.47,149.41,26.82]
[1745457779460,10.20381768,149.5,149.42,6.6902]
[1745457779654,10.20381768,149.48,149.42,6.6902]
[1745457780361,6.6889,149.46,149.43,6.6899]
[1745457780859,6.6905,149.42,149.38,6.6921]
[1745457781061,10.20381768,149.44,149.36,26.8]
[1745457781364,10.20381768,149.42,149.34,2.0551]
[1745457781859,6.6914,149.4,149.36,6.6929]
[1745457782059,6.6914,149.4,149.34,2.0551]
[1745457782259,10.20381768,149.42,149.34,2.0551]
[1745457782561,6.6914,149.4,149.36,6.6927]
[1745457783056,6.6896,149.44,149.37,10.20381768]
[1745457783261,1.9689,149.46,149.37,10.20381768]
[1745457783262,37.00381768,149.49,149.39,10.20381768]
[1745457783462,37.00381768,149.49,149.41,10.20381768]
[1745457783763,37.00381768,149.49,149.44,6.6894]
[1745457783963,37.00381768,149.49,149.41,37.00381768]
[1745457784164,6.6884,149.47,149.43,6.6898]
[1745457784960,37.00381768,149.49,149.41,26.8]
[1745457785367,26.8,149.49,149.41,26.8]
[1745457785666,26.8,149.49,149.42,6.6904]
[1745457786067,6.6888,149.46,149.42,6.6904]
[1745457786264,26.8,149.49,149.42,6.6904]
[1745457786466,26.8,149.49,149.41,33.4907]
[1745457786765,26.8,149.49,149.41,6.6907]
[1745457786965,6.6896,149.44,149.41,6.6907]
[1745457787167,26.8,149.49,149.4,6.6911]
[1745457787666,6.69,149.43,149.4,6.6911]
[1745457787868,16.29653903,149.47,149.39,6.6916]
[1745457788059,16.29653903,149.47,149.38,28.7321]
[1745457788257,6.6905,149.42,149.38,28.7321]
[1745457788564,6.6905,149.42,149.39,6.6914]
[1745457789165,6.69,149.43,149.4,6.6912]
[1745457789464,26.36,149.45,149.38,28.7321]
[1745457790367,26.36,149.45,149.4,6.6909]
[1745457790967,26.36,149.45,149.38,28.7321]
[1745457791465,6.6884,149.47,149.44,6.6892]
[1745457791865,26.36,149.48,149.38,30.8039]
[1745457793170,26.36,149.48,149.4,16.29653903]
[1745457793468,28.3819,149.51,149.41,1.9853]
[1745457793665,28.3819,149.51,149.42,26.36]
[1745457793971,26.36,149.51,149.43,16.29653903]
[1745457794166,26.36,149.54,149.43,16.29653903]
[1745457794366,26.36,149.54,149.44,1.9839]
[1745457794562,26.36,149.54,149.44,3.8832]
[1745457794760,26.36,149.54,149.49,6.6869]
[1745457795368,6.6857,149.53,149.49,6.6869]
[1745457796171,6.686,149.52,149.49,6.6869]
[1745457796967,6.6864,149.51,149.48,6.6875]
[1745457797669,6.686,149.52,149.48,6.6875]
[1745457797969,6.686,149.52,149.44,3.8832]
[1745457797970,16.29653903,149.53,149.43,26.36]
[1745457798171,1.8736,149.51,149.43,26.36]
[1745457798366,26.36,149.5,149.41,1.9853]
[1745457798869,6.6878,149.48,149.44,6.6891]
[1745457799069,6.6878,149.48,149.41,1.9853]
[1745457799462,26.36,149.5,149.41,1.9853]
[1745457799665,26.36,149.5,149.41,3.9386]
[1745457799966,33.047,149.5,149.46,6.6883]
[1745457800165,6.687,149.5,149.46,6.6883]
[1745457801373,42.65653903,149.53,149.44,26.36]
[1745457801576,16.29653903,149.5,149.44,26.36]
[1745457801770,26.36,149.49,149.41,1.9853]
[1745457801968,6.689,149.45,149.41,1.9853]
[1745457802575,6.689,149.45,149.41,8.6757]
[1745457802876,6.6895,149.44,149.41,8.6757]
[1745457803173,2.0395,149.48,149.4,28.2291]
[1745457803574,6.6897,149.44,149.4,28.2291]
[1745457803874,16.29653903,149.47,149.4,26.36]
[1745457804065,16.29653903,149.47,149.37,26.36]
[1745457804372,16.29653903,149.44,149.34,26.36]
[1745457804564,26.36,149.43,149.34,26.36]
[1745457804766,6.6925,149.38,149.34,26.36]
[1745457805166,26.36,149.43,149.32,533.8529]
[1745457805167,16.29653903,149.41,149.32,4.0329]
[1745457805474,6.6935,149.36,149.32,4.0329]
[1745457806277,6.6935,149.36,149.33,6.6941]
[1745457806677,6.6927,149.37,149.33,6.6941]
[1745457807978,6.6923,149.38,149.33,6.6941]
[1745457808879,6.6923,149.38,149.32,4.0329]
[1745457809079,1.9247,149.4,149.32,4.0329]
[1745457809578,6.6925,149.38,149.34,6.6936]
[1745457809983,6.6925,149.38,149.32,4.0329]
[1745457811480,6.6925,149.38,149.34,6.6936]
[1745457811679,1.9247,149.4,149.32,2.0123]
[1745457812184,1.9247,149.4,149.33,6.6943]
[1745457812384,6.693,149.37,149.33,6.6943]
[1745457812677,6.693,149.37,149.34,6.6939]
[1745457812879,6.6924,149.38,149.34,6.6939]
[1745457813482,6.6926,149.37,149.34,6.6939]
[1745457813783,12.12022448,149.4,149.35,6.6933]
[1745457813979,1.9247,149.4,149.35,6.6933]
[1745457814485,6.6925,149.38,149.34,6.6938]
[1745457814679,1.9247,149.4,149.34,6.6938]
[1745457814884,12.12022448,149.4,149.34,6.6938]
[1745457816389,12.12022448,149.4,149.35,6.6935]
[1745457816591,12.12022448,149.4,149.32,2.0123]
[1745457817090,6.6929,149.37,149.33,6.694]
[1745457817591,6.6929,149.37,149.34,6.6938]
[1745457819793,6.6923,149.38,149.35,6.6933]
[1745457820289,6.6923,149.38,149.32,2.0123]
[1745457820489,6.6923,149.38,149.34,6.6935]
[1745457821695,6.6927,149.37,149.34,6.6935]
[1745457822194,12.12022448,149.4,149.33,6.6942]
[1745457822498,12.12022448,149.4,149.32,2.0123]
[1745457822993,6.6925,149.38,149.34,6.6935]
[1745457823192,6.6925,149.38,149.32,2.0123]
[1745457823495,6.6925,149.38,149.34,6.6936]
[1745457823695,6.6926,149.37,149.34,6.6936]
[1745457823897,12.12022448,149.4,149.34,6.6936]
[1745457824095,6.6925,149.38,149.32,2.0123]
[1745457824393,12.12022448,149.4,149.32,2.0123]
[1745457824794,28.4123,149.42,149.32,2.0123]
[1745457824795,26.36,149.42,149.33,10.19552448]
[1745457824994,2.036,149.45,149.33,1.9732]
[1745457825296,2.036,149.45,149.42,6.6902]
[1745457825597,8.7254,149.45,149.42,6.6902]
[1745457826188,6.6895,149.44,149.41,6.6906]
[1745457826392,2.036,149.45,149.38,28.2645]
[1745457826692,6.6902,149.43,149.4,6.6908]
[1745457826895,2.036,149.45,149.38,28.2645]
[1745457827092,10.19552448,149.44,149.38,28.2645]
[1745457827396,6.6906,149.42,149.35,36.49552448]
[1745457827598,6.6906,149.42,149.35,26.3]
[1745457827995,6.6906,149.42,149.39,6.6916]
[1745457828298,10.19552448,149.44,149.35,26.3]
[1745457828897,10.19552448,149.44,149.38,6.6918]
[1745457828898,6.6911,149.41,149.38,6.6918]
[1745457829596,6.6905,149.42,149.39,6.6917]
[1745457829893,10.19552448,149.44,149.35,36.49552448]
[1745457830195,6.6895,149.44,149.41,6.6906]
[1745457830495,2.036,149.45,149.37,10.19552448]
[1745457830696,6.6896,149.44,149.41,6.6905]
[1745457830897,2.036,149.45,149.35,36.49552448]
[1745457831399,2.036,149.45,149.4,6.691]
[1745457831604,2.036,149.45,149.37,10.19552448]
[1745457831901,8.7251,149.45,149.41,6.6904]
[1745457832503,8.7251,149.45,149.42,6.6902]
[1745457833103,6.6895,149.44,149.4,6.6909]
[1745457833298,2.036,149.45,149.35,36.49552448]
[1745457833598,10.19552448,149.42,149.35,26.3]
[1745457833804,36.49552448,149.42,149.35,26.3]
[1745457834003,6.6917,149.4,149.36,6.6928]
[1745457834305,36.49552448,149.42,149.34,1.9155]
[1745457834496,36.49552448,149.42,149.36,6.6928]
[1745457834803,10.19552448,149.38,149.33,1.9732]
[1745457834998,10.19552448,149.38,149.32,26.3]
[1745457835193,6.6929,149.37,149.33,6.6941]
[1745457835396,6.6929,149.37,149.32,26.3]
[1745457836301,6.6929,149.37,149.34,6.6937]
[1745457837504,6.6931,149.36,149.33,6.6943]
[1745457837803,26.3,149.37,149.29,26.3]
[1745457838203,28.2698,149.37,149.29,26.3]
[1745457838804,34.9626,149.37,149.34,6.6939]
[1745457841207,28.2698,149.37,149.35,6.6934]
[1745457841903,34.9624,149.37,149.34,6.6938]
[1745457842105,28.2698,149.37,149.34,6.6938]
[1745457842304,26.3,149.4,149.32,10.19552448]
[1745457842503,38.52852448,149.43,149.33,30.0944]
[1745457843308,6.6911,149.41,149.33,30.0944]
[1745457843716,38.52852448,149.43,149.33,30.0944]
[1745457844509,6.6913,149.4,149.37,6.6924]
[1745457844711,10.19552448,149.41,149.33,30.0944]
[1745457845208,6.692,149.39,149.35,6.6932]
[1745457846312,6.692,149.39,149.36,6.6929]